fUSD/lending_fUSD_20250519
["ID","MTS","AMOUNT","RATE_DAILY","PERIOD"]
[361574880,1747620656721,-531.59,0.00013808,2]
[361574881,1747620656730,-568.49,0.00013808,2]
[361574882,1747620656739,-489.47,0.00013808,2]
[361574883,1747620656748,-151.0,0.00013808,2]
[361574884,1747620656757,-400.0,0.00013808,2]
[361574885,1747620656766,-151.0,0.00013808,2]
[361574886,1747620656776,-151.0,0.00013808,2]
[361574887,1747620656785,-151.0,0.00013808,2]
[361574888,1747620656797,-151.0,0.00013808,2]
[361574889,1747620656806,-151.0,0.00013808,2]
[361574890,1747620656815,-400.0,0.00013808,2]
[361574891,1747620656825,-151.0,0.00013808,2]
[361574892,1747620656834,-151.0,0.00013808,2]
[361574893,1747620656843,-400.0,0.00013808,2]
[361574894,1747620656852,-151.0,0.00013808,2]
[361574895,1747620656861,-837.56830375,0.00013808,2]
[361574896,1747620656870,-8971.96804424,0.00013808,2]
[361574897,1747620656880,-1293.94,0.00013808,2]
[361574898,1747620656889,-890.37,0.00013808,2]
[361574899,1747620656898,-405.02818401,0.00013808,2]
[361574900,1747620656911,-400.0,0.00013808,2]
[361574901,1747620656920,-236.009418,0.00013808,2]
[361574902,1747620656930,-678.26,0.00013808,2]
[361574903,1747620656939,-400.0,0.00013808,2]
[361574904,1747620656947,-400.0,0.00013808,2]
[361574905,1747620656957,-151.0,0.00013808,2]
[361574906,1747620656966,-151.0,0.00013808,2]
[361574907,1747620656975,-151.0,0.00013808,2]
[361574908,1747620656985,-400.0,0.00013808,2]
[361574909,1747620656994,-791.31,0.00013808,2]
[361574910,1747620657002,-400.0,0.00013808,2]
[361574911,1747620657012,-400.0,0.00013808,2]
[361574912,1747620657021,-400.0,0.00013808,2]
[361574913,1747620657030,-1095.07,0.00013808,2]
[361574914,1747620657040,-266.39811612,0.00013808,2]
[361574915,1747620657049,-1088.54,0.00013808,2]
[361574916,1747620657058,-765.58,0.00013808,2]
[361574917,1747620657067,-400.0,0.00013808,2]
[361574918,1747620657076,-400.0,0.00013808,2]
[361574919,1747620657085,-151.0,0.00013808,2]
[361574920,1747620657094,-151.0,0.00013808,2]
[361574921,1747620657103,-450.0,0.00013808,2]
[361574922,1747620657112,-400.0,0.00013808,2]
[361574923,1747620657121,-807.25,0.00013808,2]
[361574924,1747620657130,-400.0,0.00013808,2]
[361574925,1747620657139,-206.842652,0.00013808,2]
[361574926,1747620657148,-400.0,0.00013808,2]
[361574927,1747620657157,-1005.61,0.00013808,2]
[361574928,1747620657166,-400.0,0.00013808,2]
[361574929,1747620657175,-1735.14,0.00013808,2]
[361574930,1747620657185,-400.0,0.00013808,2]
[361574931,1747620657194,-870.21,0.00013808,2]
[361574932,1747620657205,-778.23,0.00013808,2]
[361574933,1747620657215,-638.62,0.00013808,2]
[361574934,1747620657224,-400.0,0.00013808,2]
[361574935,1747620657233,-400.0,0.00013808,2]
[361574936,1747620657243,-602.43,0.00013808,2]
[361574937,1747620657252,-505.31,0.00013808,2]
[361574938,1747620657261,-512.20995175,0.00013808,2]
[361574939,1747620657270,-1473.63,0.00013808,2]
[361574940,1747620657281,-235.450771,0.00013808,2]
[361574941,1747620657292,-235.450771,0.00013808,2]
[361574942,1747620657301,-235.450771,0.00013808,2]
[361574943,1747620657310,-400.0,0.00013808,2]
[361574944,1747620657319,-397.255941,0.00013808,2]
[361574945,1747620657328,-400.0,0.00013808,2]
[361574946,1747620657337,-397.255941,0.00013808,2]
[361574947,1747620657346,-1146.33,0.00013808,2]
[361574948,1747620657355,-397.255941,0.00013808,2]
[361574949,1747620657364,-1027.4,0.00013808,2]
[361574950,1747620657373,-1090.08,0.00013808,2]
[361574951,1747620657382,-235.450771,0.00013808,2]
[361574952,1747620657392,-235.450771,0.00013808,2]
[361574953,1747620657401,-235.450771,0.00013808,2]
[361574954,1747620657410,-960.86,0.00013808,2]
[361574955,1747620657419,-397.255941,0.00013808,2]
[361574956,1747620657428,-397.255941,0.00013808,2]
[361574957,1747620657437,-397.255941,0.00013808,2]
[361574958,1747620657447,-446.11,0.00013808,2]
[361574959,1747620657456,-492.31,0.00013808,2]
[361574960,1747620657465,-1000.0,0.00013808,2]
[361574961,1747620657474,-152.452711,0.00013808,2]
[361574962,1747620657483,-400.0,0.00013808,2]
[361574963,1747620657493,-400.0,0.00013808,2]
[361574964,1747620657502,-400.0,0.00013808,2]
[361574965,1747620657511,-400.0,0.00013808,2]
[361574966,1747620657520,-1235.45,0.00013808,2]
[361574967,1747620657529,-400.0,0.00013808,2]
[361574968,1747620657538,-400.0,0.00013808,2]
[361574969,1747620657547,-400.0,0.00013808,2]
[361574970,1747620657557,-826.24,0.00013808,2]
[361574971,1747620657566,-400.0,0.00013808,2]
[361574972,1747620657575,-496.96,0.00013808,2]
[361574973,1747620657584,-400.0,0.00013808,2]
[361574974,1747620657593,-1415.44,0.00013808,2]
[361574975,1747620657602,-1171.75,0.00013808,2]
[361574976,1747620657611,-1873.26,0.00013808,2]
[361574977,1747620657619,-713.88,0.00013808,2]
[361574978,1747620657628,-882.25,0.00013808,2]
[361574979,1747620657638,-400.0,0.00013808,2]
[361574980,1747620657647,-464.6,0.00013808,2]
[361574981,1747620657656,-554.89,0.00013808,2]
[361574982,1747620657665,-548.02,0.00013808,2]
[361574983,1747620657674,-403.13578141,0.00013808,2]
[361574984,1747620657683,-400.0,0.00013808,2]
[361574985,1747620657693,-1758.69,0.00013808,2]
[361574986,1747620657702,-400.0,0.00013808,2]
[361574987,1747620657711,-1350.27,0.00013808,2]
[361574988,1747620657721,-400.0,0.00013808,2]
[361574989,1747620657730,-881.14,0.00013808,2]
[361574990,1747620657739,-631.78,0.00013808,2]
[361574991,1747620657748,-400.0,0.00013808,2]
[361574992,1747620657757,-400.0,0.00013808,2]
[361574993,1747620657766,-400.0,0.00013808,2]
[361574994,1747620657775,-400.0,0.00013808,2]
[361574995,1747620657784,-400.0,0.00013808,2]
[361574996,1747620657793,-655.05,0.00013808,2]
[361574997,1747620657803,-463.84,0.00013808,2]
[361574998,1747620657812,-400.0,0.00013808,2]
[361574999,1747620657821,-944.2,0.00013808,2]
[361575000,1747620657830,-400.0,0.00013808,2]
[361575001,1747620657839,-609.17,0.00013808,2]
[361575002,1747620657849,-400.0,0.00013808,2]
[361575003,1747620657858,-151.0,0.00013808,2]
[361575004,1747620657867,-400.0,0.00013808,2]
[361575005,1747620657877,-400.0,0.00013808,2]
[361575006,1747620657886,-151.0,0.00013808,2]
[361575007,1747620657895,-4343.22,0.00013808,2]
[361575008,1747620657904,-866.21,0.00013808,2]
[361575009,1747620657913,-400.0,0.00013808,2]
[361575010,1747620657922,-7485.42,0.00013808,2]
[361575011,1747620657931,-400.0,0.00013808,2]
[361575012,1747620657940,-501.41,0.00013808,2]
[361575013,1747620657949,-1286.63,0.00013808,2]
[361575014,1747620657958,-401.96875823,0.00013808,2]
[361575015,1747620657966,-400.0,0.00013808,2]
[361575016,1747620657976,-400.0,0.00013808,2]
[361575017,1747620657985,-1216.37,0.00013808,2]
[361575018,1747620657994,-400.0,0.00013808,2]
[361575019,1747620658002,-1289.74,0.00013808,2]
[361575020,1747620658011,-400.0,0.00013808,2]
[361575021,1747620658020,-2740.8,0.00013808,2]
[361575022,1747620658029,-400.0,0.00013808,2]
[361575023,1747620658038,-4408.03,0.00013808,2]
[361575024,1747620658047,-434.59,0.00013808,2]
[361575025,1747620658056,-400.0,0.00013808,2]
[361575026,1747620658065,-400.0,0.00013808,2]
[361575027,1747620658074,-681.35,0.00013808,2]
[361575028,1747620658083,-2243.45,0.00013808,2]
[361575029,1747620658092,-4982.98,0.00013808,2]
[361575030,1747620658101,-201.04298743,0.00013808,2]
[361575031,1747620658109,-400.0,0.00013808,2]
[361575032,1747620658118,-400.0,0.00013808,2]
[361575033,1747620658127,-530.42,0.00013808,2]
[361575034,1747620658136,-400.0,0.00013808,2]
[361575035,1747620658145,-641.37,0.00013808,2]
[361575036,1747620658154,-400.0,0.00013808,2]
[361575037,1747620658163,-903.18,0.00013808,2]
[361575038,1747620658172,-400.0,0.00013808,2]
[361575039,1747620658181,-1497.55,0.00013808,2]
[361575040,1747620658191,-400.0,0.00013808,2]
[361575041,1747620658200,-666.15,0.00013808,2]
[361575042,1747620658213,-548.05,0.00013808,2]
[361575043,1747620658222,-400.0,0.00013808,2]
[361575044,1747620658231,-400.0,0.00013808,2]
[361575045,1747620658240,-403.66128293,0.00013808,2]
[361575046,1747620658250,-400.0,0.00013808,2]
[361575047,1747620658259,-1185.3,0.00013808,2]
[361575048,1747620658268,-400.0,0.00013808,2]
[361575049,1747620658279,-7100.56,0.00013808,2]
[361575050,1747620658288,-1137.99,0.00013808,2]
[361575051,1747620658297,-715.01,0.00013808,2]
[361575052,1747620658306,-400.0,0.00013808,2]
[361575053,1747620658316,-1819.65,0.00013808,2]
[361575054,1747620658325,-929.46,0.00013808,2]
[361575055,1747620658334,-442.07,0.00013808,2]
[361575056,1747620658343,-625.8,0.00013808,2]
[361575057,1747620658352,-400.0,0.00013808,2]
[361575058,1747620658361,-1471.99,0.00013808,2]
[361575059,1747620658370,-1104.01,0.00013808,2]
[361575060,1747620658379,-800.94,0.00013808,2]
[361575061,1747620658387,-2877.39,0.00013808,2]
[361575062,1747620658396,-4034.61,0.00013808,2]
[361575063,1747620658405,-985.25,0.00013808,2]
[361575064,1747620658414,-560.46,0.00013808,2]
[361575065,1747620658423,-233.19157476,0.00013808,2]
[361575066,1747620658432,-400.0,0.00013808,2]
[361575067,1747620658441,-2622.72,0.00013808,2]
[361575068,1747620658451,-13731.24,0.00013808,2]
[361575069,1747620658460,-400.0,0.00013808,2]
[361575070,1747620658469,-400.0,0.00013808,2]
[361575071,1747620658477,-3469.66,0.00013808,2]
[361575072,1747620658487,-408.42842385,0.00013808,2]
[361575073,1747620658497,-7558.79,0.00013808,2]
[361575074,1747620658505,-402.99,0.00013808,2]
[361575075,1747620658514,-646.2,0.00013808,2]
[361575076,1747620658524,-560.93,0.00013808,2]
[361575077,1747620658533,-400.0,0.00013808,2]
[361575078,1747620658544,-635.33,0.00013808,2]
[361575079,1747620658553,-400.0,0.00013808,2]
[361575080,1747620658562,-701.82,0.00013808,2]
[361575081,1747620658571,-985.0,0.00013808,2]
[361575082,1747620658581,-400.0,0.00013808,2]
[361575083,1747620658590,-151.0,0.00013808,2]
[361575084,1747620658599,-594.91,0.00013808,2]
[361575085,1747620658609,-151.0,0.00013808,2]
[361575086,1747620658618,-400.0,0.00013808,2]
[361575087,1747620658628,-474.78,0.00013808,2]
[361575088,1747620658638,-400.0,0.00013808,2]
[361575089,1747620658647,-879.58,0.00013808,2]
[361575090,1747620658655,-11505.77,0.00013808,2]
[361575091,1747620658664,-761.41,0.00013808,2]
[361575092,1747620658673,-176.27160118,0.00013808,2]
[361575093,1747620658683,-151.0,0.00013808,2]
[361575094,1747620658692,-400.0,0.00013808,2]
[361575095,1747620658701,-400.0,0.00013808,2]
[361575096,1747620658712,-2676.66,0.00013808,2]
[361575097,1747620658721,-400.0,0.00013808,2]
[361575098,1747620658731,-2470.25,0.00013808,2]
[361575099,1747620658740,-400.0,0.00013808,2]
[361575100,1747620658748,-458.41,0.00013808,2]
[361575101,1747620658758,-400.0,0.00013808,2]
[361575102,1747620658767,-400.0,0.00013808,2]
[361575103,1747620658776,-1413.14,0.00013808,2]
[361575104,1747620658786,-402.06116307,0.00013808,2]
[361575105,1747620658797,-1395.56,0.00013808,2]
[361575106,1747620658806,-2598.73,0.00013808,2]
[361575107,1747620658815,-20613.96,0.00013808,2]
[361575108,1747620658824,-400.0,0.00013808,2]
[361575109,1747620658834,-1360.3,0.00013808,2]
[361575110,1747620658843,-280.160433,0.00013808,2]
[361575111,1747620658852,-400.0,0.00013808,2]
[361575112,1747620658861,-280.160433,0.00013808,2]
[361575113,1747620658870,-1629.42,0.00013808,2]
[361575114,1747620658880,-400.0,0.00013808,2]
[361575115,1747620658889,-1953.02,0.00013808,2]
[361575116,1747620658897,-986.62,0.00013808,2]
[361575117,1747620658907,-400.0,0.00013808,2]
[361575118,1747620658916,-280.160433,0.00013808,2]
[361575119,1747620658925,-400.0,0.00013808,2]
[361575120,1747620658933,-280.160433,0.00013808,2]
[361575121,1747620658942,-1229.93,0.00013808,2]
[361575122,1747620658951,-400.0,0.00013808,2]
[361575123,1747620658960,-922.95,0.00013808,2]
[361575124,1747620658969,-400.0,0.00013808,2]
[361575125,1747620658978,-553.55,0.00013808,2]
[361575126,1747620658987,-400.0,0.00013808,2]
[361575127,1747620658996,-1235.41,0.00013808,2]
[361575128,1747620659005,-1181.23,0.00013808,2]
[361575129,1747620659014,-2201.76,0.00013808,2]
[361575130,1747620659024,-2527.52,0.00013808,2]
[361575131,1747620659032,-1382.8,0.00013808,2]
[361575132,1747620659042,-843.36,0.00013808,2]
[361575133,1747620659051,-492.98,0.00013808,2]
[361575134,1747620659060,-1113.95,0.00013808,2]
[361575135,1747620659069,-400.0,0.00013808,2]
[361575136,1747620659079,-400.0,0.00013808,2]
[361575137,1747620659088,-1452.66,0.00013808,2]
[361575138,1747620659097,-1221.8,0.00013808,2]
[361575139,1747620659106,-540.42,0.00013808,2]
[361575140,1747620659115,-401.62,0.00013808,2]
[361575141,1747620659124,-1176.25,0.00013808,2]
[361575142,1747620659133,-2036.19,0.00013808,2]
[361575143,1747620659142,-9143.27,0.00013808,2]
[361575144,1747620659152,-400.0,0.00013808,2]
[361575145,1747620659161,-401.42506311,0.00013808,2]
[361575146,1747620659170,-568.58,0.00013808,2]
[361575147,1747620659180,-429.22,0.00013808,2]
[361575148,1747620659189,-603.68,0.00013808,2]
[361575149,1747620659198,-1138.21,0.00013808,2]
[361575150,1747620659211,-1299.76,0.00013808,2]
[361575151,1747620659221,-1626.14,0.00013808,2]
[361575152,1747620659230,-2640.55,0.00013808,2]
[361575153,1747620659239,-604.25,0.00013808,2]
[361575154,1747620659248,-691.25,0.00013808,2]
[361575155,1747620659258,-400.0,0.00013808,2]
[361575156,1747620659267,-833.43,0.00013808,2]
[361575157,1747620659277,-400.0,0.00013808,2]
[361575158,1747620659288,-400.0,0.00013808,2]
[361575159,1747620659299,-400.0,0.00013808,2]
[361575160,1747620659308,-1254.94,0.00013808,2]
[361575161,1747620659317,-400.0,0.00013808,2]
[361575162,1747620659327,-881.13,0.00013808,2]
[361575163,1747620659336,-1213.9,0.00013808,2]
[361575164,1747620659345,-400.0,0.00013808,2]
[361575165,1747620659354,-16683.78,0.00013808,2]
[361575166,1747620659363,-400.0,0.00013808,2]
[361575167,1747620659373,-477.47,0.00013808,2]
[361575168,1747620659382,-1036.31,0.00013808,2]
[361575169,1747620659391,-1094.63,0.00013808,2]
[361575170,1747620659400,-1314.01,0.00013808,2]
[361575171,1747620659409,-487.33,0.00013808,2]
[361575172,1747620659418,-735.89,0.00013808,2]
[361575173,1747620659427,-400.0,0.00013808,2]
[361575174,1747620659436,-1674.37,0.00013808,2]
[361575175,1747620659446,-400.0,0.00013808,2]
[361575176,1747620659455,-400.0,0.00013808,2]
[361575177,1747620659463,-2694.9,0.00013808,2]
[361575178,1747620659473,-750.65,0.00013808,2]
[361575179,1747620659482,-498.45,0.00013808,2]
[361575180,1747620659491,-400.0,0.00013808,2]
[361575181,1747620659500,-400.0,0.00013808,2]
[361575182,1747620659510,-3409.41,0.00013808,2]
[361575183,1747620659519,-2369.15806,0.00013808,2]
[361575184,1747620659528,-400.0,0.00013808,2]
[361575185,1747620659537,-2369.15806,0.00013808,2]
[361575186,1747620659547,-3593.55,0.00013808,2]
[361575187,1747620659556,-422.23,0.00013808,2]
[361575188,1747620659565,-2369.15806,0.00013808,2]
[361575189,1747620659574,-400.0,0.00013808,2]
[361575190,1747620659584,-2885.49,0.00013808,2]
[361575191,1747620659593,-436.76,0.00013808,2]
[361575192,1747620659602,-2369.15806,0.00013808,2]
[361575193,1747620659612,-777.88,0.00013808,2]
[361575194,1747620659621,-450.0,0.00013808,2]
[361575195,1747620659631,-400.0,0.00013808,2]
[361575196,1747620659640,-6113.41,0.00013808,2]
[361575197,1747620659650,-400.0,0.00013808,2]
[361575198,1747620659659,-467.78,0.00013808,2]
[361575199,1747620659669,-400.0,0.00013808,2]
[361575200,1747620659679,-400.0,0.00013808,2]
[361575201,1747620659688,-400.0,0.00013808,2]
[361575202,1747620659698,-152.276646,0.00013808,2]
[361575203,1747620659708,-253.79630221,0.00013808,2]
[361575204,1747620659717,-400.0,0.00013808,2]
[361575205,1747620659727,-2647.77,0.00013808,2]
[361575206,1747620659736,-400.0,0.00013808,2]
[361575207,1747620659746,-403.03568933,0.00013808,2]
[361575208,1747620659755,-962.43,0.00013808,2]
[361575209,1747620659765,-2440.19,0.00013808,2]
[361575210,1747620659774,-1361.668379,0.00013808,2]
[361575211,1747620659794,-408.89044649,0.00013808,2]
[361575212,1747620659804,-547.8,0.00013808,2]
[361575213,1747620659813,-781.36,0.00013808,2]
[361575214,1747620659822,-4895.75,0.00013808,2]
[361575215,1747620659832,-3968.29,0.00013808,2]
[361575216,1747620659841,-645.65,0.00013808,2]
[361575217,1747620659851,-400.0,0.00013808,2]
[361575218,1747620659861,-400.0,0.00013808,2]
[361575219,1747620659870,-400.0,0.00013808,2]
[361575220,1747620659879,-410.480534,0.00013808,2]
[361575221,1747620659888,-1283.56,0.00013808,2]
[361575222,1747620659898,-410.480534,0.00013808,2]
[361575223,1747620659907,-410.480534,0.00013808,2]
[361575224,1747620659916,-400.0,0.00013808,2]
[361575225,1747620659926,-1532.27,0.00013808,2]
[361575226,1747620659935,-610.6,0.00013808,2]
[361575227,1747620659945,-400.0,0.00013808,2]
[361575228,1747620660101,-2059.21,0.00013808,2]
[361575229,1747620660122,-526.15264166,0.00013808,2]
[361575230,1747620660131,-605.45,0.00013808,2]
[361575231,1747620660140,-791.23,0.00013808,2]
[361575232,1747620660149,-4351.97,0.00013808,2]
[361575233,1747620660159,-410.480534,0.00013808,2]
[361575234,1747620660168,-410.480534,0.00013808,2]
[361575235,1747620660177,-400.0,0.00013808,2]
[361575236,1747620660186,-410.480534,0.00013808,2]
[361575237,1747620660195,-1838.04,0.00013808,2]
[361575238,1747620660208,-400.0,0.00013808,2]
[361575239,1747620660219,-655.54,0.00013808,2]
[361575240,1747620660230,-405.1,0.00013808,2]
[361575241,1747620660242,-400.0,0.00013808,2]
[361575242,1747620660254,-530.4,0.00013808,2]
[361575243,1747620660265,-400.0,0.00013808,2]
[361575244,1747620660277,-1266.606688,0.00013808,2]
[361575245,1747620660290,-1266.606688,0.00013808,2]
[361575246,1747620660306,-151.0,0.00013808,2]
[361575247,1747620660317,-400.0,0.00013808,2]
[361575248,1747620660332,-151.0,0.00013808,2]
[361575249,1747620660344,-698.34,0.00013808,2]
[361575250,1747620660354,-705.51,0.00013808,2]
[361575251,1747620660364,-400.0,0.00013808,2]
[361575252,1747620660375,-400.0,0.00013808,2]
[361575253,1747620660386,-1266.606688,0.00013808,2]
[361575254,1747620660396,-1266.606688,0.00013808,2]
[361575255,1747620660406,-1000.0,0.00013808,2]
[361575256,1747620660417,-689.36,0.00013808,2]
[361575257,1747620660428,-2683.49,0.00013808,2]
[361575258,1747620660439,-2305.58,0.00013808,2]
[361575259,1747620660449,-400.0,0.00013808,2]
[361575260,1747620660460,-1356.81,0.00013808,2]
[361575261,1747620660470,-588.32,0.00013808,2]
[361575262,1747620660481,-400.0,0.00013808,2]
[361575263,1747620660492,-400.0,0.00013808,2]
[361575264,1747620660502,-606.58,0.00013808,2]
[361575265,1747620660511,-1074.39,0.00013808,2]
[361575266,1747620660522,-400.0,0.00013808,2]
[361575267,1747620660534,-400.0,0.00013808,2]
[361575268,1747620660551,-528.56,0.00013808,2]
[361575269,1747620660563,-151.0,0.00013808,2]
[361575270,1747620660575,-304.64984171,0.00013808,2]
[361575271,1747620660587,-151.0,0.00013808,2]
[361575272,1747620660598,-400.0,0.00013808,2]
[361575273,1747620660607,-1033.68,0.00013808,2]
[361575274,1747620660617,-402.37180529,0.00013808,2]
[361575275,1747620660628,-400.0,0.00013808,2]
[361575276,1747620660639,-472.38,0.00013808,2]
[361575277,1747620660649,-2394.97,0.00013808,2]
[361575278,1747620660661,-400.0,0.00013808,2]
[361575279,1747620660672,-400.0,0.00013808,2]
[361575280,1747620660683,-654.23,0.00013808,2]
[361575281,1747620660694,-448.34,0.00013808,2]
[361575282,1747620660704,-5683.63,0.00013808,2]
[361575283,1747620660714,-400.0,0.00013808,2]
[361575284,1747620660725,-400.0,0.00013808,2]
[361575285,1747620660735,-735.31,0.00013808,2]
[361575286,1747620660746,-402.22530097,0.00013808,2]
[361575287,1747620660757,-400.0,0.00013808,2]
[361575288,1747620660769,-400.0,0.00013808,2]
[361575289,1747620660779,-400.0,0.00013808,2]
[361575290,1747620660789,-484.07,0.00013808,2]
[361575291,1747620660805,-400.0,0.00013808,2]
[361575292,1747620660815,-400.0,0.00013808,2]
[361575293,1747620660826,-400.0,0.00013808,2]
[361575294,1747620660835,-551.53,0.00013808,2]
[361575295,1747620660845,-400.0,0.00013808,2]
[361575296,1747620660856,-2073.08,0.00013808,2]
[361575297,1747620660866,-826.73,0.00013808,2]
[361575298,1747620660876,-1831.72,0.00013808,2]
[361575299,1747620660886,-400.0,0.00013808,2]
[361575300,1747620660898,-448.87577015,0.00013808,2]
[361575301,1747620660907,-400.0,0.00013808,2]
[361575302,1747620660917,-11317.81,0.00013808,2]
[361575303,1747620660928,-400.0,0.00013808,2]
[361575304,1747620660938,-400.0,0.00013808,2]
[361575305,1747620660948,-400.0,0.00013808,2]
[361575306,1747620660957,-400.0,0.00013808,2]
[361575307,1747620660966,-855.0,0.00013808,2]
[361575308,1747620660976,-400.0,0.00013808,2]
[361575309,1747620660985,-623.45,0.00013808,2]
[361575310,1747620660995,-400.0,0.00013808,2]
[361575311,1747620661004,-748.03,0.00013808,2]
[361575312,1747620661014,-650.92,0.00013808,2]
[361575313,1747620661024,-400.0,0.00013808,2]
[361575314,1747620661033,-400.0,0.00013808,2]
[361575315,1747620661046,-1005.91,0.00013808,2]
[361575316,1747620661056,-400.0,0.00013808,2]
[361575317,1747620661065,-1314.44,0.00013808,2]
[361575318,1747620661075,-151.0,0.00013808,2]
[361575319,1747620661084,-151.0,0.00013808,2]
[361575320,1747620661094,-1718.13,0.00013808,2]
[361575321,1747620661104,-525.82824221,0.00013808,2]
[361575322,1747620661113,-151.0,0.00013808,2]
[361575323,1747620661123,-164.48567,0.00013808,2]
[361575324,1747620661132,-158.445782,0.00013808,2]
[361575325,1747620661142,-410.78,0.00013808,2]
[361575326,1747620661153,-158.445782,0.00013808,2]
[361575327,1747620661163,-1220.67,0.00013808,2]
[361575328,1747620661172,-8970.39,0.00013808,2]
[361575329,1747620661182,-400.0,0.00013808,2]
[361575330,1747620661191,-163.8242143,0.00013808,2]
[361575331,1747620661201,-2201.61,0.00013808,2]
[361575332,1747620661214,-578.05,0.00013808,2]
[361575333,1747620661224,-400.0,0.00013808,2]
[361575334,1747620661234,-400.0,0.00013808,2]
[361575335,1747620661244,-400.0,0.00013808,2]
[361575336,1747620661254,-9123.49,0.00013808,2]
[361575337,1747620661264,-158.445782,0.00013808,2]
[361575338,1747620661276,-400.0,0.00013808,2]
[361575339,1747620661290,-158.445782,0.00013808,2]
[361575340,1747620661308,-1068.6,0.00013808,2]
[361575341,1747620661319,-14124.98,0.00013808,2]
[361575342,1747620661330,-182.944103,0.00013808,2]
[361575343,1747620661342,-623.77,0.00013808,2]
[361575344,1747620661353,-898.89,0.00013808,2]
[361575345,1747620661364,-400.0,0.00013808,2]
[361575346,1747620661375,-400.0,0.00013808,2]
[361575347,1747620661387,-1960.9,0.00013808,2]
[361575348,1747620661398,-4386.15,0.00013808,2]
[361575349,1747620661409,-554.53,0.00013808,2]
[361575350,1747620661420,-352.03425991,0.00013808,2]
[361575351,1747620661433,-976.47,0.00013808,2]
[361575352,1747620661443,-752.54,0.00013808,2]
[361575353,1747620661453,-856.12,0.00013808,2]
[361575354,1747620661463,-958.18,0.00013808,2]
[361575355,1747620661473,-400.0,0.00013808,2]
[361575356,1747620661483,-573.78,0.00013808,2]
[361575357,1747620661494,-481.99276341,0.00013808,2]
[361575358,1747620661503,-541.16,0.00013808,2]
[361575359,1747620661514,-400.0,0.00013808,2]
[361575360,1747620661524,-400.0,0.00013808,2]
[361575361,1747620661535,-400.0,0.00013808,2]
[361575362,1747620661551,-2110.33,0.00013808,2]
[361575363,1747620661561,-2730.17,0.00013808,2]
[361575364,1747620661572,-153.19833197,0.00013812,2]
[361575365,1747620661584,-151.0,0.00013813,2]
[361575366,1747620661596,-151.0,0.00013813,2]
[361575367,1747620661606,-151.0,0.00013813,2]
[361575368,1747620661617,-151.0,0.00013813,2]
[361575369,1747620661629,-300.941838,0.00013813,2]
[361575370,1747620661640,-300.941838,0.00013813,2]
[361575371,1747620661650,-151.0,0.00013813,2]
[361575372,1747620661659,-151.0,0.00013813,2]
[361575373,1747620661669,-373.584908,0.00013813,2]
[361575374,1747620661680,-151.0,0.00013813,2]
[361575375,1747620661690,-373.584908,0.00013813,2]
[361575376,1747620661700,-151.0,0.00013813,2]
[361575377,1747620661710,-151.0,0.00013813,2]
[361575378,1747620661720,-151.0,0.00013813,2]
[361575379,1747620661730,-151.0,0.00013813,2]